[Event "GER-chT Youth Countries 2020"]
[Site "Berlin"]
[Date "2020.10.01"]
[Round "3"]
[White "Voigt, Anastasia"]
[Black "Werner, Florin"]
[Result "1-0"]
[ECO "C06"]
[WhiteElo "1562"]
[BlackElo "1481"]
[Annotator "NA"]
[PlyCount "109"]
[EventDate "2020.09.30"]
[EventType "team-tourn"]
[EventRounds "7"]
[EventCountry "GER"]
[SourceTitle "playchess.com"]
[Source "ChessBase"]
[SourceQuality "1"]
[TimeControl "30/5400+30:0"]

1. e4 {[%emt 0:00:00]} e6 {[%emt 0:00:00]} 2. d4 {[%emt 0:00:00]} d5 {[%emt 0:00:00]} 3. Nd2 {[%emt 0:00:00]} Nf6 {[%emt 0:00:00]} 4. e5 {[%emt 0:00:00]} Nfd7 {[%emt 0:00:00]} 5. Bd3 {[%emt 0:00:11]} c5 {[%emt 0:00:00]} 6. c3 {[%emt 0:00:09]} Nc6 {[%emt 0:00:00]} 7. Ne2 {[%emt 0:00:11]} cxd4 {[%emt 0:00:00]} 8. cxd4 {[%emt 0:00:10]} f6 {[%emt 0:00:13]} 9. exf6 {[%emt 0:00:44]} Nxf6 {[%emt 0:00:06]} 10. Nf3 {[%emt 0:01:52]} Bd6 {[%emt 0:00:09]} 11. Bf4 {[%emt 0:01:30]} O-O {[%emt 0:00:08]} 12. O-O {[%emt 0:02:50]} Nh5 {[%emt 0:00:35]} 13. Bxd6 {[%emt 0:03:07]} Qxd6 {[%emt 0:00:07]} 14. Qc2 {[%emt 0:03:01]} Rxf3 {[%emt 0:32:51]} 15. gxf3 {[%emt 0:16:34]} Bd7 16. Rad1 {[%emt 0:14:13]} Nf4 {[%emt 0:05:35]} 17. Nxf4 {[%emt 0:04:28]} Qxf4 {[%emt 0:00:09]} 18. Qc3 {[%emt 0:11:38]} e5 {[%emt 0:02:43]} 19. Qd2 {[%emt 0:07:41]} Qxf3 {[%emt 0:02:31]} 20. Qe3 {[%emt 0:01:47]} Qh5 {[%emt 0:07:35]} 21. dxe5 {[%emt 0:03:26]} Nxe5 {[%emt 0:00:15]} 22. Be2 {[%emt 0:00:42]} Bg4 {[%emt 0:03:22]} 23. Bxg4 {[%emt 0:02:55]} Nxg4 {[%emt 0:00:11]} 24. Qg3 {[%emt 0:00:30]} Rf8 {[%emt 0:00:29]} 25. Rd3 {[%emt 0:03:12]} Ne5 {[%emt 0:07:02]} 26. Re3 {[%emt 0:02:50]} Rf5 {[%emt 0:02:33]} 27. Kh1 {[%emt 0:01:57]} Ng4 {[%emt 0:01:59]} 28. Re7 {[%emt 0:02:24]} h6 {[%emt 0:00:29]} 29. h3 {[%emt 0:00:39]} Rg5 30. Qd3 {[%emt 0:06:22]} Nf6 {[%emt 0:05:23]} 31. Rg1 {[%emt 1:31:01]} Ne4 {[%emt 1:31:18]} 32. Rxg5 {[%emt 0:03:55]} Nxf2+ {[%emt 0:00:15]} 33. Kh2 {[%emt 0:00:15]} Qxg5 {[%emt 0:00:25]} 34. Qe3 {[%emt 0:00:33]} Qh4 {[%emt 0:08:21]} 35. Re8+ {[%emt 0:01:00]} Kh7 {[%emt 0:00:14]} 36. Qg3 {[%emt 0:00:21]} Qxg3+ {[%emt 0:03:30]} 37. Kxg3 {[%emt 0:00:10]} Nd3 {[%emt 0:00:02]} 38. Re7 {[%emt 0:01:09]} b6 {[%emt 0:00:21]} 39. Rxa7 {[%emt 0:00:17]} Nxb2 {[%emt 0:00:11]} 40. Rd7 {[%emt 0:00:10]} Nc4 {[%emt 0:00:49]} 41. Rxd5 {[%emt 0:00:43]} Na3 {[%emt 0:02:48]} 42. Rd3 {[%emt 0:00:40]} Nc4 {[%emt 0:00:50]} 43. Rb3 {[%emt 0:00:20]} h5 {[%emt 0:00:36]} 44. Rb4 {[%emt 0:00:18]} Na5 {[%emt 0:00:58]} 45. Rxb6 {[%emt 0:00:18]} g6 {[%emt 0:00:04]} 46. a4 {[%emt 0:01:16]} Kh6 47. Rb5 Nc6 {[%emt 0:02:02]} 48. a5 {[%emt 0:00:40]} Na7 {[%emt 0:00:28]} 49. Rb7 {[%emt 0:00:39]} Nc6 {[%emt 0:00:11]} 50. a6 Kg5 {[%emt 0:00:14]} 51. a7 {[%emt 0:01:27]} h4+ 52. Kf3 {[%emt 0:00:39]} Nxa7 {[%emt 0:00:13]} 53. Rxa7 {[%emt 0:00:07]} Kf5 {[%emt 0:00:03]} 54. Ra5+ {[%emt 0:00:19]} Kf6 {[%emt 0:00:12]} 55. Kg4 {[%emt 0:00:10]} 1-0

[Event "GER-chT Youth Countries 2020"]
[Site "Berlin"]
[Date "2020.10.01"]
[Round "3"]
[White "Eichhorn, Mathilda"]
[Black "Bako, Evelin"]
[Result "1/2-1/2"]
[ECO "C43"]
[WhiteElo "1532"]
[BlackElo "1192"]
[Annotator "NA"]
[PlyCount "76"]
[EventDate "2020.09.30"]
[EventType "team-tourn"]
[EventRounds "7"]
[EventCountry "GER"]
[SourceTitle "playchess.com"]
[Source "ChessBase"]
[SourceQuality "1"]
[TimeControl "30/5400+30:0"]

1. e4 {[%emt 0:00:00]} e5 {[%emt 0:00:00]} 2. Nf3 {[%emt 0:00:00]} Nf6 {[%emt 0:00:00]} 3. d4 {[%emt 0:00:00]} Nxe4 {[%emt 0:00:11]} 4. Bd3 {[%emt 0:00:00]} d5 {[%emt 0:00:32]} 5. dxe5 {[%emt 0:00:45]} Bg4 {[%emt 0:10:19]} 6. Bxe4 {[%emt 0:02:15]} dxe4 {[%emt 0:00:29]} 7. Qxd8+ {[%emt 0:00:04]} Kxd8 {[%emt 0:00:20]} 8. Ng5 {[%emt 0:00:09]} Ke8 {[%emt 0:03:23]} 9. Nxe4 {[%emt 0:00:42]} Nc6 {[%emt 0:01:49]} 10. Be3 {[%emt 0:13:53]} Nxe5 {[%emt 0:01:41]} 11. Nbd2 {[%emt 0:01:02]} Bb4 {[%emt 0:01:49]} 12. O-O {[%emt 0:01:59]} f6 {[%emt 0:02:07]} 13. a3 {[%emt 0:01:13]} Be7 {[%emt 0:03:27]} 14. f3 {[%emt 0:01:24]} Bf5 {[%emt 0:00:58]} 15. Rfe1 {[%emt 0:02:17]} Kf7 {[%emt 0:01:17]} 16. Bf4 {[%emt 0:01:32]} Bd6 {[%emt 0:06:07]} 17. Nxd6+ {[%emt 0:01:44]} cxd6 {[%emt 0:00:15]} 18. Ne4 {[%emt 0:01:13]} Rad8 {[%emt 0:01:18]} 19. Re2 {[%emt 0:01:39]} Rhe8 {[%emt 0:04:09]} 20. b3 {[%emt 0:03:37]} d5 {[%emt 0:00:30]} 21. Bxe5 {[%emt 0:00:30]} Rxe5 {[%emt 0:00:30]} 22. Ng3 {[%emt 0:05:14]} Rxe2 {[%emt 0:03:19]} 23. Nxe2 {[%emt 0:00:05]} Bxc2 {[%emt 0:00:13]} 24. Nd4 {[%emt 0:00:26]} Bg6 {[%emt 0:01:02]} 25. Rc1 {[%emt 0:01:01]} Rd7 {[%emt 0:03:00]} 26. h3 {[%emt 0:00:48]} Ke7 {[%emt 0:02:41]} 27. Re1+ {[%emt 0:00:28]} Kf7 {[%emt 0:02:24]} 28. f4 {[%emt 0:00:24]} Be4 {[%emt 0:00:43]} 29. g4 {[%emt 0:00:45]} g6 {[%emt 0:01:03]} 30. Rd1 {[%emt 0:02:22]} a6 {[%emt 0:01:12]} 31. Kf2 {[%emt 1:31:42]} Re7 {[%emt 1:33:49]} 32. Rd2 {[%emt 0:01:17]} Rc7 {[%emt 0:01:52]} 33. Ne2 {[%emt 0:02:23]} Rc2 {[%emt 0:04:58]} 34. Rxc2 {[%emt 0:00:15]} Bxc2 {[%emt 0:00:30]} 35. b4 {[%emt 0:00:13]} Be4 {[%emt 0:00:30]} 36. Nc3 {[%emt 0:00:30]} f5 {[%emt 0:00:30]} 37. g5 {[%emt 0:00:30]} b5 {[%emt 0:00:30]} 38. Ke3 {[%emt 0:00:24]} Ke6 {[%emt 0:00:54]} 1/2-1/2

[Event "GER-chT Youth Countries 2020"]
[Site "Berlin"]
[Date "2020.10.01"]
[Round "3"]
[White "Uhlmann, Tim"]
[Black "Brunner, Sophia"]
[Result "1-0"]
[ECO "C01"]
[WhiteElo "1523"]
[BlackElo "1850"]
[Annotator "NA"]
[PlyCount "74"]
[EventDate "2020.09.30"]
[EventType "team-tourn"]
[EventRounds "7"]
[EventCountry "GER"]
[SourceTitle "playchess.com"]
[Source "ChessBase"]
[SourceQuality "1"]
[TimeControl "30/5400+30:0"]

1. e4 {[%emt 0:00:00]} e6 {[%emt 0:00:00]} 2. d4 {[%emt 0:00:00]} d5 {[%emt 0:00:00]} 3. exd5 {[%emt 0:00:00]} exd5 {[%emt 0:00:00]} 4. Nf3 {[%emt 0:00:00]} Bd6 {[%emt 0:00:03]} 5. c4 {[%emt 0:00:00]} Nf6 {[%emt 0:00:11]} 6. Nc3 {[%emt 0:00:08]} O-O {[%emt 0:00:25]} 7. Bd3 {[%emt 0:00:25]} Re8+ {[%emt 0:05:42]} 8. Be3 {[%emt 0:00:13]} Bf4 {[%emt 0:21:25]} 9. O-O {[%emt 0:02:37]} Bxe3 {[%emt 0:06:55]} 10. fxe3 {[%emt 0:00:38]} Nc6 {[%emt 0:09:21]} 11. Nxd5 {[%emt 0:08:46]} Nxd5 {[%emt 0:01:06]} 12. cxd5 {[%emt 0:00:10]} Qxd5 {[%emt 0:00:48]} 13. e4 {[%emt 0:00:26]} Qh5 {[%emt 0:01:16]} 14. d5 {[%emt 0:05:57]} Ne5 {[%emt 0:09:48]} 15. Nxe5 {[%emt 0:00:45]} Qxe5 {[%emt 0:00:03]} 16. Qf3 {[%emt 0:00:31]} f6 {[%emt 0:01:25]} 17. Kh1 {[%emt 0:04:58]} Bd7 {[%emt 0:03:35]} 18. b3 {[%emt 0:02:49]} c6 {[%emt 0:05:43]} 19. Rad1 {[%emt 0:04:42]} Kh8 {[%emt 0:01:55]} 20. Bb1 {[%emt 0:03:19]} Re7 {[%emt 0:03:56]} 21. d6 {[%emt 0:05:21]} Re6 {[%emt 0:07:46]} 22. Qf5 {[%emt 0:02:08]} Qxf5 {[%emt 0:05:00]} 23. exf5 {[%emt 0:00:21]} Re5 {[%emt 0:00:18]} 24. Rfe1 {[%emt 0:02:47]} Rae8 {[%emt 0:00:28]} 25. Rxe5 {[%emt 0:00:06]} Rxe5 {[%emt 0:00:06]} 26. Kg1 {[%emt 0:00:37]} Kg8 {[%emt 0:00:23]} 27. g4 {[%emt 0:00:23]} Kf7 {[%emt 0:00:32]} 28. Kf2 {[%emt 0:00:12]} Ke8 {[%emt 0:01:05]} 29. b4 {[%emt 0:07:25]} Kd8 {[%emt 0:06:10]} 30. Bc2 {[%emt 0:00:54]} a6 {[%emt 0:05:03]} 31. h4 {[%emt 1:36:56]} h5 {[%emt 1:32:26]} 32. Kf3 {[%emt 0:00:45]} g6 {[%emt 0:01:14]} 33. Kf4 {[%emt 0:02:17]} hxg4 {[%emt 0:00:33]} 34. fxg6 {[%emt 0:00:57]} Be6 {[%emt 0:00:22]} 35. Rh1 {[%emt 0:01:26]} Rh5 {[%emt 0:00:32]} 36. g7 {[%emt 0:00:51]} Ke8 {[%emt 0:01:44]} 37. Bg6+ {[%emt 0:00:07]} Bf7 {[%emt 0:00:05]} 1-0

[Event "GER-chT Youth Countries 2020"]
[Site "Berlin"]
[Date "2020.10.01"]
[Round "3"]
[White "Fischer, Juliane"]
[Black "Schwenke, Mia"]
[Result "1/2-1/2"]
[ECO "C47"]
[WhiteElo "1509"]
[BlackElo "1265"]
[Annotator "NA"]
[PlyCount "81"]
[EventDate "2020.09.30"]
[EventType "team-tourn"]
[EventRounds "7"]
[EventCountry "GER"]
[SourceTitle "playchess.com"]
[Source "ChessBase"]
[SourceQuality "1"]
[TimeControl "30/5400+30:0"]

1. e4 {[%emt 0:00:00]} e5 {[%emt 0:00:00]} 2. Nf3 {[%emt 0:00:00]} Nc6 {[%emt 0:00:00]} 3. Nc3 {[%emt 0:00:00]} Nf6 {[%emt 0:00:00]} 4. a3 {[%emt 0:00:04]} d5 {[%emt 0:00:22]} 5. Bb5 {[%emt 0:00:09]} d4 {[%emt 0:00:36]} 6. Ne2 {[%emt 0:00:06]} Bd7 {[%emt 0:00:16]} 7. d3 {[%emt 0:02:53]} Bd6 {[%emt 0:00:48]} 8. O-O {[%emt 0:00:42]} h6 {[%emt 0:00:20]} 9. Bd2 {[%emt 0:00:40]} Ne7 {[%emt 0:00:49]} 10. Bc4 {[%emt 0:01:34]} Nc6 {[%emt 0:06:49]} 11. Ng3 {[%emt 0:02:43]} g6 {[%emt 0:09:14]} 12. Nxe5 {[%emt 0:05:20]} Nxe5 {[%emt 0:03:46]} 13. Ba2 {[%emt 0:04:12]} g5 {[%emt 0:06:32]} 14. f4 {[%emt 0:07:15]} gxf4 {[%emt 0:03:13]} 15. Bxf4 {[%emt 0:00:15]} Qe7 {[%emt 0:08:16]} 16. Nh5 {[%emt 0:05:31]} Nxh5 {[%emt 0:10:49]} 17. Bxe5 {[%emt 0:05:34]} Qxe5 {[%emt 0:11:56]} 18. Bxf7+ {[%emt 0:04:38]} Kd8 {[%emt 0:00:39]} 19. Qxh5 {[%emt 0:00:36]} Qxh5 {[%emt 0:01:20]} 20. Bxh5 {[%emt 0:00:08]} c6 {[%emt 0:05:14]} 21. Rf7 {[%emt 0:06:13]} Be8 {[%emt 0:03:23]} 22. Rf6 {[%emt 0:02:04]} Be7 {[%emt 0:02:54]} 23. Rf5 {[%emt 0:00:43]} Bxh5 {[%emt 0:01:05]} 24. Rxh5 {[%emt 0:00:07]} Kd7 {[%emt 0:02:34]} 25. Rf5 {[%emt 0:01:31]} Raf8 {[%emt 0:00:58]} 26. Raf1 {[%emt 0:00:21]} Rxf5 {[%emt 0:01:23]} 27. Rxf5 {[%emt 0:00:22]} Rf8 {[%emt 0:02:50]} 28. g4 {[%emt 0:05:41]} Ke6 {[%emt 0:02:03]} 29. Kg2 {[%emt 0:02:36]} Rxf5 {[%emt 0:05:30]} 30. gxf5+ {[%emt 0:01:59]} Ke5 {[%emt 0:00:44]} 31. Kf3 {[%emt 1:30:13]} Bg5 {[%emt 1:31:11]} 32. b3 {[%emt 0:02:08]} b5 {[%emt 0:01:27]} 33. Kg4 {[%emt 0:00:43]} a6 {[%emt 0:02:21]} 34. Kh5 {[%emt 0:06:24]} Kf6 {[%emt 0:00:31]} 35. Kg4 {[%emt 0:02:20]} c5 {[%emt 0:01:53]} 36. a4 {[%emt 0:00:40]} Be3 {[%emt 0:01:53]} 37. axb5 {[%emt 0:01:33]} axb5 {[%emt 0:00:18]} 38. h3 {[%emt 0:00:34]} Bd2 {[%emt 0:00:55]} 39. Kh5 {[%emt 0:00:55]} Bg5 {[%emt 0:00:56]} 40. Kg4 {[%emt 0:00:10]} b4 {[%emt 0:02:48]} 41. Kh5 {[%emt 0:00:32]} 1/2-1/2

[Event "GER-chT Youth Countries 2020"]
[Site "Berlin"]
[Date "2020.10.01"]
[Round "3"]
[White "Moldovan, Tatiana"]
[Black "Goepfert, Christian"]
[Result "0-1"]
[ECO "C73"]
[WhiteElo "1480"]
[BlackElo "1603"]
[Annotator "NA"]
[PlyCount "112"]
[EventDate "2020.09.30"]
[EventType "team-tourn"]
[EventRounds "7"]
[EventCountry "GER"]
[SourceTitle "playchess.com"]
[Source "ChessBase"]
[SourceQuality "1"]
[TimeControl "30/5400+30:0"]

1. e4 {[%emt 0:04:26]} e5 {[%emt 0:00:00]} 2. Nf3 {[%emt 0:01:05]} Nc6 {[%emt 0:00:00]} 3. Bb5 {[%emt 0:00:17]} a6 {[%emt 0:00:41]} 4. Ba4 {[%emt 0:00:08]} d6 {[%emt 0:01:34]} 5. Bxc6+ {[%emt 0:00:33]} bxc6 {[%emt 0:00:20]} 6. d4 {[%emt 0:00:15]} exd4 {[%emt 0:01:36]} 7. Nxd4 {[%emt 0:00:42]} Bd7 {[%emt 0:00:39]} 8. Nc3 {[%emt 0:00:20]} g6 {[%emt 0:03:25]} 9. O-O {[%emt 0:00:21]} Bg7 {[%emt 0:00:03]} 10. Be3 {[%emt 0:00:04]} Nf6 {[%emt 0:01:51]} 11. Nf3 {[%emt 0:01:36]} Qe7 {[%emt 0:03:01]} 12. Bg5 {[%emt 0:00:29]} h6 {[%emt 0:04:21]} 13. Bh4 {[%emt 0:00:36]} O-O {[%emt 0:18:06]} 14. e5 {[%emt 0:00:31]} dxe5 {[%emt 0:01:33]} 15. Re1 {[%emt 0:00:32]} Be6 {[%emt 0:06:06]} 16. Nxe5 {[%emt 0:02:23]} Qc5 {[%emt 0:04:53]} 17. Nd3 {[%emt 0:00:51]} Qd4 {[%emt 0:04:37]} 18. Bg3 {[%emt 0:03:35]} Qa7 {[%emt 0:08:01]} 19. Ne5 {[%emt 0:08:52]} Bd5 {[%emt 0:00:54]} 20. Nxd5 {[%emt 0:00:26]} cxd5 {[%emt 0:00:19]} 21. Nc6 {[%emt 0:02:21]} Qc5 {[%emt 0:01:08]} 22. Ne7+ {[%emt 0:00:49]} Kh7 {[%emt 0:00:17]} 23. b4 {[%emt 0:00:39]} Qc4 {[%emt 0:07:50]} 24. Qd3 {[%emt 0:01:50]} Qxb4 {[%emt 0:07:40]} 25. Bxc7 {[%emt 0:05:28]} Qc5 {[%emt 0:00:34]} 26. Bg3 {[%emt 0:02:13]} Rfe8 {[%emt 0:01:30]} 27. Qe3 {[%emt 0:00:49]} Qxe3 {[%emt 0:00:20]} 28. Rxe3 {[%emt 0:00:31]} Ne4 {[%emt 0:00:07]} 29. Rae1 {[%emt 0:00:50]} Rxe7 {[%emt 0:00:16]} 30. Kf1 {[%emt 0:01:51]} Nxg3+ {[%emt 0:00:24]} 31. hxg3 {[%emt 1:30:27]} Rxe3 {[%emt 1:30:07]} 32. Rxe3 {[%emt 0:00:00]} Rc8 {[%emt 0:00:36]} 33. Re2 {[%emt 0:00:44]} Rc3 {[%emt 0:00:48]} 34. Rd2 {[%emt 0:00:23]} d4 {[%emt 0:00:22]} 35. Rd3 {[%emt 0:00:52]} Rxd3 {[%emt 0:00:06]} 36. cxd3 {[%emt 0:00:11]} f5 {[%emt 0:00:11]} 37. Ke2 {[%emt 0:00:32]} g5 {[%emt 0:00:04]} 38. f3 {[%emt 0:00:14]} Kg6 {[%emt 0:00:08]} 39. g4 {[%emt 0:01:31]} Kf6 {[%emt 0:00:35]} 40. g3 {[%emt 0:00:18]} Ke5 {[%emt 0:00:08]} 41. Kd2 {[%emt 0:00:18]} fxg4 {[%emt 0:00:27]} 42. fxg4 {[%emt 0:00:32]} Kd5 {[%emt 0:00:02]} 43. Kc2 {[%emt 0:00:58]} Be5 {[%emt 0:00:34]} 44. Kd2 {[%emt 0:00:18]} Bxg3 {[%emt 0:00:09]} 45. Kd1 {[%emt 0:00:21]} Ke5 {[%emt 0:00:08]} 46. Ke2 {[%emt 0:00:02]} Kf4 {[%emt 0:00:19]} 47. Kd2 {[%emt 0:00:21]} Kxg4 {[%emt 0:00:05]} 48. Ke2 {[%emt 0:00:04]} h5 {[%emt 0:00:18]} 49. a4 {[%emt 0:00:28]} h4 {[%emt 0:00:13]} 50. Kf1 {[%emt 0:00:07]} Kf3 {[%emt 0:00:11]} 51. a5 {[%emt 0:02:07]} Ke3 {[%emt 0:00:21]} 52. Kg2 {[%emt 0:02:01]} Kxd3 {[%emt 0:00:17]} 53. Kf1 {[%emt 0:00:36]} Kc2 {[%emt 0:00:33]} 54. Kg2 {[%emt 0:00:14]} d3 {[%emt 0:00:05]} 55. Kh3 {[%emt 0:00:01]} d2 {[%emt 0:00:30]} 56. Kg2 {[%emt 0:00:04]} d1=Q {[%emt 0:00:00]} 0-1

[Event "GER-chT Youth Countries 2020"]
[Site "Berlin"]
[Date "2020.10.01"]
[Round "3"]
[White "Fuchs, Emily"]
[Black "Jacoby, Angelina"]
[Result "0-1"]
[ECO "B01"]
[WhiteElo "1441"]
[BlackElo "1630"]
[Annotator "NA"]
[PlyCount "92"]
[EventDate "2020.09.30"]
[EventType "team-tourn"]
[EventRounds "7"]
[EventCountry "GER"]
[SourceTitle "playchess.com"]
[Source "ChessBase"]
[SourceQuality "1"]
[TimeControl "30/5400+30:0"]

1. e4 {[%emt 0:00:00]} d5 {[%emt 0:00:00]} 2. exd5 {[%emt 0:00:00]} Qxd5 {[%emt 0:00:00]} 3. Nc3 {[%emt 0:00:00]} Qd8 {[%emt 0:00:07]} 4. d4 {[%emt 0:00:00]} Nf6 {[%emt 0:00:05]} 5. Nf3 {[%emt 0:00:02]} Bg4 {[%emt 0:00:08]} 6. d5 {[%emt 0:02:17]} c6 {[%emt 0:05:15]} 7. Bc4 {[%emt 0:01:31]} b5 {[%emt 0:11:07]} 8. Bb3 {[%emt 0:11:28]} b4 {[%emt 0:13:07]} 9. Na4 {[%emt 0:02:34]} cxd5 {[%emt 0:01:44]} 10. Nc5 {[%emt 0:03:22]} e6 {[%emt 0:01:24]} 11. Ba4+ {[%emt 0:01:41]} Nbd7 {[%emt 0:03:58]} 12. Nxd7 {[%emt 0:03:11]} Nxd7 {[%emt 0:00:10]} 13. h3 {[%emt 0:04:10]} Bxf3 {[%emt 0:04:22]} 14. Qxf3 {[%emt 0:00:07]} Be7 {[%emt 0:00:57]} 15. Qg3 {[%emt 0:14:52]} O-O {[%emt 0:02:44]} 16. Bf4 {[%emt 0:04:04]} Rc8 {[%emt 0:15:41]} 17. O-O {[%emt 0:07:39]} Nc5 {[%emt 0:02:50]} 18. Bb3 {[%emt 0:10:25]} Bf6 {[%emt 0:05:04]} 19. Rab1 {[%emt 0:07:14]} a5 {[%emt 0:00:52]} 20. a4 {[%emt 0:02:39]} Qd7 {[%emt 0:03:12]} 21. Be5 {[%emt 0:04:54]} Ne4 {[%emt 0:01:37]} 22. Qf4 {[%emt 0:01:08]} Bxe5 {[%emt 0:00:17]} 23. Qxe5 {[%emt 0:00:20]} Nd2 {[%emt 0:00:08]} 24. Rbd1 {[%emt 0:00:16]} Nxf1 {[%emt 0:00:14]} 25. Rxf1 {[%emt 0:00:23]} Qc7 {[%emt 0:00:47]} 26. Qe3 {[%emt 0:00:57]} Rfd8 {[%emt 0:01:13]} 27. Kh1 {[%emt 0:01:27]} Qc5 {[%emt 0:03:59]} 28. Qe2 {[%emt 0:01:44]} Qd4 {[%emt 0:01:18]} 29. Rb1 {[%emt 0:02:23]} Qc5 {[%emt 0:02:04]} 30. Rf1 {[%emt 0:01:08]} Rd6 {[%emt 0:02:54]} 31. f4 {[%emt 1:31:06]} d4 {[%emt 1:32:32]} 32. Qd3 {[%emt 0:05:34]} Qf5 {[%emt 0:01:22]} 33. Qxf5 {[%emt 0:01:23]} exf5 {[%emt 0:00:09]} 34. Re1 {[%emt 0:00:22]} d3 {[%emt 0:03:57]} 35. cxd3 {[%emt 0:00:25]} Rxd3 {[%emt 0:00:14]} 36. Bc2 {[%emt 0:00:34]} Rd5 {[%emt 0:01:03]} 37. Kg1 {[%emt 0:06:02]} Kf8 {[%emt 0:00:20]} 38. Bb3 {[%emt 0:00:27]} Rd3 {[%emt 0:02:51]} 39. Ba2 {[%emt 0:00:55]} Rcd8 {[%emt 0:01:00]} 40. Kh2 {[%emt 0:00:38]} b3 {[%emt 0:05:03]} 41. Bb1 {[%emt 0:00:00]} Rd1 {[%emt 0:00:00]} 42. Rxd1 {[%emt 0:00:00]} Rxd1 {[%emt 0:00:00]} 43. Bxf5 {[%emt 0:00:00]} Rd2 {[%emt 0:00:00]} 44. Kg3 {[%emt 0:00:00]} Rxb2 {[%emt 0:00:00]} 45. Kf3 {[%emt 0:00:00]} Ra2 {[%emt 0:00:00]} 46. Bb1 {[%emt 0:00:00]} Rxa4 {[%emt 0:00:00]} 0-1

[Event "GER-chT Youth Countries 2020"]
[Site "Berlin"]
[Date "2020.10.01"]
[Round "3"]
[White "Berghold, Lotta"]
[Black "Schreidl, Michael"]
[Result "0-1"]
[ECO "D05"]
[WhiteElo "1411"]
[BlackElo "1640"]
[Annotator "NA"]
[PlyCount "86"]
[EventDate "2020.09.30"]
[EventType "team-tourn"]
[EventRounds "7"]
[EventCountry "GER"]
[SourceTitle "playchess.com"]
[Source "ChessBase"]
[SourceQuality "1"]
[TimeControl "30/5400+30:0"]

1. d4 {[%emt 0:00:00]} d5 {[%emt 0:00:00]} 2. Nf3 {[%emt 0:00:00]} Nf6 {[%emt 0:00:00]} 3. e3 {[%emt 0:00:00]} e6 {[%emt 0:00:00]} 4. Bd3 {[%emt 0:00:00]} Be7 {[%emt 0:01:19]} 5. Nbd2 {[%emt 0:00:16]} Nbd7 {[%emt 0:00:53]} 6. O-O {[%emt 0:00:09]} O-O {[%emt 0:00:56]} 7. c3 {[%emt 0:03:30]} c5 {[%emt 0:06:01]} 8. Qe2 {[%emt 0:03:03]} Re8 {[%emt 0:07:01]} 9. e4 {[%emt 0:04:50]} dxe4 {[%emt 0:03:01]} 10. Nxe4 {[%emt 0:01:34]} Nxe4 {[%emt 0:00:25]} 11. Bxe4 {[%emt 0:00:09]} Nf6 {[%emt 0:04:24]} 12. Bc2 {[%emt 0:01:41]} cxd4 {[%emt 0:03:43]} 13. Nxd4 {[%emt 0:01:14]} a6 {[%emt 0:05:04]} 14. Bg5 {[%emt 0:10:42]} Nd5 {[%emt 0:11:57]} 15. Bxe7 {[%emt 0:01:12]} Qxe7 {[%emt 0:00:38]} 16. Qf3 {[%emt 0:05:37]} g6 {[%emt 0:07:52]} 17. Rfe1 {[%emt 0:02:56]} b5 {[%emt 0:07:17]} 18. Rad1 {[%emt 0:11:46]} Bb7 {[%emt 0:02:43]} 19. Be4 {[%emt 0:03:52]} f5 {[%emt 0:05:31]} 20. Bb1 {[%emt 0:28:38]} Qf7 {[%emt 0:03:01]} 21. Ne2 {[%emt 0:07:03]} e5 {[%emt 0:03:01]} 22. Qd3 {[%emt 0:04:09]} Rad8 {[%emt 0:06:19]} 23. Qg3 {[%emt 0:02:23]} f4 {[%emt 0:04:39]} 24. Qg5 {[%emt 0:01:26]} Kg7 {[%emt 0:01:10]} 25. Be4 {[%emt 0:02:54]} h6 {[%emt 0:00:48]} 26. Bxd5 {[%emt 0:02:33]} Bxd5 {[%emt 0:00:39]} 27. Qg4 {[%emt 0:00:33]} Be6 {[%emt 0:00:26]} 28. Qf3 {[%emt 0:00:12]} Bd5 {[%emt 0:03:43]} 29. Qg4 {[%emt 0:01:12]} f3 {[%emt 0:01:19]} 30. Ng3 {[%emt 0:00:27]} fxg2 {[%emt 0:00:14]} 31. Ne4 {[%emt 1:30:45]} Qf4 {[%emt 1:36:14]} 32. Qxf4 {[%emt 0:00:36]} exf4 {[%emt 0:00:08]} 33. f3 {[%emt 0:00:32]} Bxe4 {[%emt 0:01:22]} 34. Rxd8 {[%emt 0:00:11]} Rxd8 {[%emt 0:00:10]} 35. Rxe4 {[%emt 0:00:41]} Rd1+ {[%emt 0:01:27]} 36. Kxg2 {[%emt 0:00:12]} Rd2+ {[%emt 0:00:02]} 37. Kh3 {[%emt 0:00:20]} Rxb2 {[%emt 0:00:26]} 38. a4 {[%emt 0:01:10]} g5 {[%emt 0:01:56]} 39. axb5 {[%emt 0:00:25]} axb5 {[%emt 0:00:12]} 40. Rd4 {[%emt 0:00:20]} Rc2 {[%emt 0:00:34]} 41. Rd3 {[%emt 0:00:35]} Kg6 {[%emt 0:00:22]} 42. Rd6+ {[%emt 0:00:00]} Kh5 {[%emt 0:00:00]} 43. Rd3 {[%emt 0:00:00]} Re2 {[%emt 0:00:00]} 0-1

[Event "GER-chT Youth Countries 2020"]
[Site "Berlin"]
[Date "2020.10.01"]
[Round "3"]
[White "Khanbekyan, Nare"]
[Black "Ottlik, Marie"]
[Result "1-0"]
[ECO "B01"]
[WhiteElo "1334"]
[BlackElo "1454"]
[Annotator "NA"]
[PlyCount "73"]
[EventDate "2020.09.30"]
[EventType "team-tourn"]
[EventRounds "7"]
[EventCountry "GER"]
[SourceTitle "playchess.com"]
[Source "ChessBase"]
[SourceQuality "1"]
[TimeControl "30/5400+30:0"]

1. e4 {[%emt 0:00:00]} d5 {[%emt 0:00:00]} 2. exd5 {[%emt 0:00:00]} Nf6 {[%emt 0:00:00]} 3. d4 {[%emt 0:00:00]} Nxd5 {[%emt 0:00:00]} 4. c4 {[%emt 0:00:04]} Nb6 {[%emt 0:00:06]} 5. Nc3 {[%emt 0:00:16]} g6 {[%emt 0:00:35]} 6. c5 {[%emt 0:00:16]} Nd5 {[%emt 0:00:20]} 7. Bc4 {[%emt 0:00:08]} c6 {[%emt 0:04:20]} 8. Nf3 {[%emt 0:01:27]} Bg7 {[%emt 0:01:22]} 9. O-O {[%emt 0:00:56]} O-O {[%emt 0:01:44]} 10. Re1 {[%emt 0:00:43]} Re8 {[%emt 0:03:39]} 11. Ne5 {[%emt 0:05:15]} e6 {[%emt 0:08:17]} 12. Qf3 {[%emt 0:08:38]} Rf8 {[%emt 0:07:39]} 13. Bd2 {[%emt 0:11:58]} Nd7 {[%emt 0:05:11]} 14. Bxd5 {[%emt 0:07:04]} cxd5 {[%emt 0:04:27]} 15. Bf4 {[%emt 0:02:58]} Nxe5 {[%emt 0:15:35]} 16. Bxe5 {[%emt 0:01:59]} f6 {[%emt 0:04:20]} 17. Bd6 {[%emt 0:01:58]} Rf7 {[%emt 0:05:03]} 18. Re2 {[%emt 0:12:22]} a6 {[%emt 0:04:23]} 19. Rae1 {[%emt 0:02:53]} Bf8 {[%emt 0:06:32]} 20. Nxd5 {[%emt 0:07:25]} Bxd6 {[%emt 0:10:17]} 21. cxd6 {[%emt 0:00:53]} Bd7 {[%emt 0:02:11]} 22. Nc7 {[%emt 0:02:27]} Rc8 {[%emt 0:04:33]} 23. Nxe6 {[%emt 0:02:09]} Bxe6 {[%emt 0:03:02]} 24. Rxe6 {[%emt 0:00:25]} Qa5 {[%emt 0:03:22]} 25. Qb3 {[%emt 0:04:47]} Kg7 {[%emt 0:00:52]} 26. g3 {[%emt 0:02:02]} Qd2 {[%emt 0:00:31]} 27. Re7 {[%emt 0:01:49]} Rxe7 {[%emt 0:00:26]} 28. Rxe7+ {[%emt 0:00:20]} Kh6 {[%emt 0:00:17]} 29. Qe3+ {[%emt 0:01:24]} Qxe3 {[%emt 0:00:24]} 30. fxe3 {[%emt 0:00:10]} Rc1+ {[%emt 0:00:13]} 31. Kf2 {[%emt 1:30:39]} Rc2+ {[%emt 1:30:05]} 32. Kf3 {[%emt 0:00:10]} Rxb2 {[%emt 0:00:33]} 33. d7 {[%emt 0:00:34]} Rb1 {[%emt 0:02:09]} 34. d8=Q {[%emt 0:00:16]} f5 {[%emt 0:00:14]} 35. Qf8+ {[%emt 0:00:30]} Kg5 {[%emt 0:00:18]} 36. h4+ {[%emt 0:00:13]} Kh5 {[%emt 0:00:19]} 37. Rxh7# {[%emt 0:00:07]} 1-0